{"text_format":"3","workbook":"xlsx","n_sheets":4,"sheets":["Barguthaben","Monatliche Einkünfte","Monatliche Ausgaben","DIAGRAMMDATEN"],"not_rendered":{"charts":1,"defined_names":10},"read":"whole","date_system":"1900"}

{"sheet":"Barguthaben","index":0,"n_rows":9,"n_cols":5,"rows_kept":9}
[null,"Name"]
[null,"Familienbudget"]
[null,{"$f":"TEXT(TODAY(),\"MMMM\")","v":"Januar"}]
[null,{"$f":"YEAR(TODAY())","v":2017}]
[null,"Anmerkung: Die Kassenbestandstabelle wird automatisch auf der Grundlage der Einträge auf den Arbeitsblättern \"Monatliche Einkünfte\" und \"Monatliche Ausgaben\" unten berechnet."]
[null,"Barguthaben","Geplant","Tatsächlich","Abweichung"]
[null,"Einkünfte gesamt",{"$f":"Einnahmen[[#Totals],[Geplant]]","v":{"v":5700,"d":"5,700"}},{"$f":"Einnahmen[[#Totals],[Tatsächlich]]","v":{"v":5500,"d":"5,500"}},{"$f":"Einnahmen[[#Totals],[Abweichung]]","v":-200}]
[null,"Ausgaben gesamt",{"$f":"Ausgaben[[#Totals],[Geplant]]","v":{"v":3603,"d":"3,603"}},{"$f":"Ausgaben[[#Totals],[Tatsächlich]]","v":{"v":3655,"d":"3,655"}},{"$f":"Ausgaben[[#Totals],[Abweichung]]","v":-52}]
[null,"Barbestand gesamt",{"$f":"C7-C8","v":{"v":2097,"d":"2,097"}},{"$f":"D7-D8","v":{"v":1845,"d":"1,845"}},{"$f":"SUBTOTAL(109,BarGuthaben[Abweichung])","v":-252}]

{"sheet":"Monatliche Einkünfte","index":1,"n_rows":9,"n_cols":5,"rows_kept":9}
[null,{"$f":"Name","v":"Name"}]
[null,{"$f":"Budgettitel","v":"Familienbudget"}]
[null,{"$f":"Monat","v":"Januar"}]
[null,{"$f":"Jahr","v":2017}]
[null,"Monatliche Einkünfte","Geplant","Tatsächlich","Abweichung"]
[null,"Einnahmen 1",{"v":4000,"d":"4,000"},{"v":4000,"d":"4,000"},{"$f":"Einnahmen[[#This Row],[Tatsächlich]]-Einnahmen[[#This Row],[Geplant]]","v":0}]
[null,"Einnahmen 2",{"v":1400,"d":"1,400"},{"v":1500,"d":"1,500"},{"$f":"Einnahmen[[#This Row],[Tatsächlich]]-Einnahmen[[#This Row],[Geplant]]","v":100}]
[null,"Sonstige Einkünfte",300,0,{"$f":"Einnahmen[[#This Row],[Tatsächlich]]-Einnahmen[[#This Row],[Geplant]]","v":-300}]
[null,"Einkünfte gesamt",{"$f":"SUBTOTAL(109,Einnahmen[Geplant])","v":{"v":5700,"d":"5,700"}},{"$f":"SUBTOTAL(109,Einnahmen[Tatsächlich])","v":{"v":5500,"d":"5,500"}},{"$f":"SUBTOTAL(109,Einnahmen[Abweichung])","v":-200}]

{"sheet":"Monatliche Ausgaben","index":2,"n_rows":26,"n_cols":5,"rows_kept":26}
[null,{"$f":"Name","v":"Name"}]
[null,{"$f":"Budgettitel","v":"Familienbudget"}]
[null,{"$f":"Monat","v":"Januar"}]
[null,{"$f":"Jahr","v":2017}]
[null,"Monatliche Ausgaben","Geplant","Tatsächlich","Abweichung"]
[null,"Wohnen",{"v":1500,"d":"1,500"},{"v":1500,"d":"1,500"},{"$f":"Ausgaben[[#This Row],[Geplant]]-Ausgaben[[#This Row],[Tatsächlich]]","v":0}]
[null,"Lebensmittel",250,280,{"$f":"Ausgaben[[#This Row],[Geplant]]-Ausgaben[[#This Row],[Tatsächlich]]","v":-30}]
[null,"Telefon",38,38,{"$f":"Ausgaben[[#This Row],[Geplant]]-Ausgaben[[#This Row],[Tatsächlich]]","v":0}]
[null,"Strom/Gas",65,78,{"$f":"Ausgaben[[#This Row],[Geplant]]-Ausgaben[[#This Row],[Tatsächlich]]","v":-13}]
[null,"Wasser/Abwasser/Abfallentsorgung",25,21,{"$f":"Ausgaben[[#This Row],[Geplant]]-Ausgaben[[#This Row],[Tatsächlich]]","v":4}]
[null,"Kabel-TV",75,83,{"$f":"Ausgaben[[#This Row],[Geplant]]-Ausgaben[[#This Row],[Tatsächlich]]","v":-8}]
[null,"Internet",60,60,{"$f":"Ausgaben[[#This Row],[Geplant]]-Ausgaben[[#This Row],[Tatsächlich]]","v":0}]
[null,"Wartungen/Reparaturen",0,60,{"$f":"Ausgaben[[#This Row],[Geplant]]-Ausgaben[[#This Row],[Tatsächlich]]","v":-60}]
[null,"Kinderbetreuung",180,150,{"$f":"Ausgaben[[#This Row],[Geplant]]-Ausgaben[[#This Row],[Tatsächlich]]","v":30}]
[null,"Unterrichtsgebühren",250,250,{"$f":"Ausgaben[[#This Row],[Geplant]]-Ausgaben[[#This Row],[Tatsächlich]]","v":0}]
[null,"Haustiere",75,80,{"$f":"Ausgaben[[#This Row],[Geplant]]-Ausgaben[[#This Row],[Tatsächlich]]","v":-5}]
[null,"Verkehrsmittel",280,260,{"$f":"Ausgaben[[#This Row],[Geplant]]-Ausgaben[[#This Row],[Tatsächlich]]","v":20}]
[null,"Persönlicher Bedarf",75,65,{"$f":"Ausgaben[[#This Row],[Geplant]]-Ausgaben[[#This Row],[Tatsächlich]]","v":10}]
[null,"Versicherungen",255,255,{"$f":"Ausgaben[[#This Row],[Geplant]]-Ausgaben[[#This Row],[Tatsächlich]]","v":0}]
[null,"Kreditkarten",100,100,{"$f":"Ausgaben[[#This Row],[Geplant]]-Ausgaben[[#This Row],[Tatsächlich]]","v":0}]
[null,"Kredite",0,0,{"$f":"Ausgaben[[#This Row],[Geplant]]-Ausgaben[[#This Row],[Tatsächlich]]","v":0}]
[null,"Steuern",0,0,{"$f":"Ausgaben[[#This Row],[Geplant]]-Ausgaben[[#This Row],[Tatsächlich]]","v":0}]
[null,"Geschenke/Spenden",150,150,{"$f":"Ausgaben[[#This Row],[Geplant]]-Ausgaben[[#This Row],[Tatsächlich]]","v":0}]
[null,"Spareinlagen",225,225,{"$f":"Ausgaben[[#This Row],[Geplant]]-Ausgaben[[#This Row],[Tatsächlich]]","v":0}]
[null,"Sonstiges",0,0,{"$f":"Ausgaben[[#This Row],[Geplant]]-Ausgaben[[#This Row],[Tatsächlich]]","v":0}]
[null,"Summe",{"$f":"SUBTOTAL(109,Ausgaben[Geplant])","v":{"v":3603,"d":"3,603"}},{"$f":"SUBTOTAL(109,Ausgaben[Tatsächlich])","v":{"v":3655,"d":"3,655"}},{"$f":"SUBTOTAL(109,Ausgaben[Abweichung])","v":-52}]

{"sheet":"DIAGRAMMDATEN","index":3,"n_rows":6,"n_cols":4,"rows_kept":6,"hidden":true}
[null,"DIAGRAMMDATEN"]
[]
[null,null,"Geplant","Tatsächlich"]
[null,"Barguthaben",{"$f":"BarGuthaben[[#Totals],[Geplant]]","v":2097},{"$f":"BarGuthaben[[#Totals],[Tatsächlich]]","v":1845}]
[null,"Monatliche Einkünfte",{"$f":"Einnahmen[[#Totals],[Geplant]]","v":5700},{"$f":"Einnahmen[[#Totals],[Tatsächlich]]","v":5500}]
[null,"Monatliche Ausgaben",{"$f":"Ausgaben[[#Totals],[Geplant]]","v":3603},{"$f":"Ausgaben[[#Totals],[Tatsächlich]]","v":3655}]